Workbook

Sheet Kold
M2: Lastnedføring version 3.0 | U2: Udgivet af Betonelement-Foreningen juni 2012
B3: Sag: | D3: Betonelementhuset | J3: Nr.: | K3: 23 - 4545 | M3: =BM34 -> 
B4: Emne: | D4: Linie B, modul 5-12. | J4: Init: | K4: JFJ
D5: Vedvarende dimensioneringstilstande (kombination 6.10b)
M6: Egenvægt, gg,sup = | O6: 1 | P6: gg,inf = | Q6: 0.9 | R6: Konsekvensklasse: KFI = | U6: 1.1
M8: Fladelaste | P8: gk | Q8: gfri,k | R8: qk | S8: gq | T8: y0 | U8: Kategori
P9: (kN/m2) | Q9: (kN/m2) | R9: (kN/m2) | BG9: Lastkategorier | BJ9: y0 | BK9: y1 | BL9: y2 | BN9: y0 | BO9: y1 | BP9: y2 | BQ9: Kontrol for E | BR9: Kontrol Sne
M10: F0 | P10: 0 | Q10: 0 | R10: 0 | BG10: A | BJ10: 1 | BK10: 2 | BL10: 3 | BM10: A | BN10: 0.5 | BO10: 0.3 | BP10: 0.2 | BQ10: =MAX(BQ11:BQ17) -> 1
M11: F1 | N11: Tagflade, sne | P11: 3.1 | Q11: 1 | R11: 0.8 | S11: 1.5 | T11: 0.6 | U11: =INDEX($BG$10:$BG$17,BI11,1) -> N | BG11: B | BH11: F1 | BI11: 8 | BJ11: =INDEX(psi,$BI11,BJ$10) -> 0.6 | BK11: 0.2 | BL11: 0 | BM11: B | BN11: 0.6 | BO11: 0.4 | BP11: 0.2 | BQ11: =IF(BI11=5,1,0) -> 0 | BR11: =IF(AND(BI11=8,T11<>BJ11),1,0) -> 0
I12: L1 og L2 betegner linielaste. | M12: F2 | N12: Boligarealer | P12: 3.65 | Q12: 1.5 | R12: 1.5 | S12: 1.5 | T12: 0.5 | U12: =INDEX($BG$10:$BG$17,BI12,1) -> A | BG12: C | BH12: F2 | BI12: 1 | BJ12: 0.5 | BK12: 0.3 | BL12: 0.2 | BM12: C | BN12: 0.6 | BO12: 0.6 | BP12: 0.5 | BQ12: =IF(BI12=5,1,0) -> 0
I13: Lv og Lh er dækkenes spændvidder. | M13: F3 | N13: Kontorer | P13: 3.65 | Q13: 2 | R13: 2.5 | S13: 1.5 | T13: 0.6 | U13: =INDEX($BG$10:$BG$17,BI13,1) -> B | BG13: D | BH13: F3 | BI13: 2 | BJ13: 0.6 | BK13: 0.4 | BL13: 0.2 | BM13: D | BN13: 0.6 | BO13: 0.6 | BP13: 0.5 | BQ13: 0
I14: Resultanter på underliggende væg | M14: F4 | N14: Kontor med arkiv | P14: 3.65 | Q14: 2 | R14: 7.5 | S14: 1.5 | T14: 1 | U14: =INDEX($BG$10:$BG$17,BI14,1) -> E | BG14: E | BH14: F4 | BI14: 5 | BJ14: =INDEX(psi,$BI14,BJ$10) -> 1 | BK14: 0.8 | BL14: 0.7 | BM14: E | BN14: 1 | BO14: 0.8 | BP14: 0.7 | BQ14: 1
I15: eller bjælke: | M15: F5 | N15: Butiksarealer | P15: 4.15 | Q15: 4 | R15: 4 | S15: 1.5 | T15: 0.6 | U15: =INDEX($BG$10:$BG$17,BI15,1) -> D | BG15: F | BH15: F5 | BI15: 4 | BJ15: 0.6 | BK15: 0.6 | BL15: 0.5 | BM15: F | BN15: 1 | BO15: 0.6 | BP15: 0.5 | BQ15: 0
M16: =IF(MAX(BJ11:BJ17)=1,"NB: EC1 3.3.1(2)P fjerner reelt lastreduktion for kategori E-G i normale lastkombinationer","") -> NB: EC1 3.3.1(2)P fjerner reelt lastreduktion for kategori E-G i normale lastkombinationer | BG16: G | BH16: L1 | BI16: 1 | BJ16: 0.5 | BK16: 0.3 | BL16: 0.2 | BM16: G | BN16: 1 | BO16: 0.4 | BP16: 0.2 | BQ16: 0
M17: Linielaste | P17: gk | Q17: gfri,k | R17: qk | S17: gq | T17: y0 | U17: Kategori | BG17: N | BH17: L2 | BI17: 4 | BJ17: 0.6 | BK17: 0.6 | BL17: 0.5 | BM17: N | BN17: =IF(BQ10=1,0.6,0.3) -> 0.6 | BO17: 0.2 | BP17: 0 | BQ17: 0
P18: (kN/m) | Q18: (kN/m) | R18: (kN/m)
M19: L0 | P19: 0 | Q19: 0 | R19: 0
I20: nv og nh : Laste fra dæk i etagen | M20: L1 | N20: Badeværelser | P20: 8 | Q20: 4 | R20: 6 | S20: 1.5 | T20: 0.5 | U20: =INDEX($BG$10:$BG$17,BI16,1) -> A
I21: no : Last fra højereliggende dæk og | M21: L2 | N21: Komprimator | P21: 0 | Q21: 8 | R21: 10 | S21: 1.5 | T21: 0.6 | U21: =INDEX($BG$10:$BG$17,BI17,1) -> D
I22: fra egenvægte i bærelinie
B23: Etage | C23: Egenvægt i bærelinie | E23: Laste på venstre dækfelt | I23: Laste på højre dækfelt | M23: maksimalværdier | P23: reducerede værdier | S23: minimalværdier | BG23: Spændvidder | BK23: Fladelaste, venstre dækfelt | BR23: Linielaste, venstre dækfelt | BY23: Fladelaste, højre dækfelt | CF23: Linielaste, højre dækfelt | CM23: Ng | CN23: DNmax (q) | CV23: DNsædv (q) | DD23: Nmax (q) | DL23: Nsædv (q) | DT23: No (q)
C24: gk | D24: gfri,k | E24: Lv | F24: Fladelast | G24: Linielast | H24: sv | I24: Lh | J24: Fladelast | K24: Linielast | L24: sh | M24: nv | N24: no | O24: nh | P24: nv | Q24: no | R24: nh | S24: nv | T24: no | U24: nh | BG24: Lv | BH24: sv | BI24: Lh | BJ24: sh | BL24: gk | BM24: gg | BN24: qk | BO24: gq | BP24: gqyq | BQ24: Kategori | BS24: gk | BT24: gg | BU24: qk | BV24: gq | BW24: gqyq | BX24: Kategori | BZ24: gk | CA24: gg | CB24: qk | CC24: gq | CD24: gqyq | CE24: Kategori | CG24: gk | CH24: gg | CI24: qk | CJ24: gq | CK24: gqyq | CL24: Kategori | CN24: A | CO24: B | CP24: C | CQ24: D | CR24: E | CS24: F | CT24: G | CU24: N | CV24: A | CW24: B | CX24: C | CY24: D | CZ24: E | DA24: F | DB24: G | DC24: N | DD24: A | DE24: B | DF24: C | DG24: D | DH24: E | DI24: F | DJ24: G | DK24: N | DL24: A | DM24: B | DN24: C | DO24: D | DP24: E | DQ24: F | DR24: G | DS24: N
C25: (kN/m) | D25: (kN/m) | E25: (m) | H25: (m) | I25: (m) | L25: (m) | M25: (kN/m) | N25: (kN/m) | O25: (kN/m) | P25: (kN/m) | Q25: (kN/m) | R25: (kN/m) | S25: (kN/m) | T25: (kN/m) | U25: (kN/m)
B26: Tag | E26: 8.4 | F26: =INDEX($M$10:$M$15,BK26,1) -> F1 | G26: =INDEX($M$19:$M$21,BR26,1) -> L0 | H26: 0 | I26: 6 | J26: =INDEX($M$10:$M$15,BY26,1) -> F1 | K26: =INDEX($M$19:$M$21,CF26,1) -> L0 | L26: 0 | M26: =IF($BL$34=1,"-",0.5*BG26*(BL26*BM26+BN26*BO26)+IF(E26>0,(BG26-BH26)*(BS26*BT26+BU26*BV26)/BG26,0)) -> 24.48602915 | N26: =IF($BL$34=1,"-",CM26+DT26) -> 11 | O26: =IF($BL$34=1,"-",0.5*BI26*(BZ26*CA26+CB26*CC26)+IF(I26>0,(BI26-BJ26)*(CG26*CH26+CI26*CJ26)/BI26)) -> 17.49002915 | P26: =IF($BL$34=1,"-",$U$6*(0.5*E26*($O$6*INDEX(fladelast,BK26,1)+$O$6*INDEX(fladelast,BK26,2)+INDEX(fladelast,BK26,3)*INDEX(fladelast,BK26,5)*INDEX(fladelast,BK26,4))+IF(E26>0,($O$6*INDEX(linielast,BR26,1)+$O$6*INDEX(linielast,BR26,2)+INDEX(linielast,BR26,3)*INDEX(linielast,BR26,5)*INDEX(linielast,BR26,4))*(E26-H26)/E26,0))) -> 22.2684 | Q26: =IF($BL$34=1,"-",$U$6*$O$6*(C27+D27)) -> 11 | R26: =IF($BL$34=1,"-",$U$6*(0.5*I26*($O$6*INDEX(fladelast,BY26,1)+$O$6*INDEX(fladelast,BY26,2)+INDEX(fladelast,BY26,3)*INDEX(fladelast,BY26,5)*INDEX(fladelast,BY26,4))+IF(I26>0,($O$6*INDEX(linielast,CF26,1)+$O$6*INDEX(linielast,CF26,2)+INDEX(linielast,CF26,3)*INDEX(linielast,CF26,5)*INDEX(linielast,CF26,4))*(I26-L26)/I26))) -> 15.906 | S26: =IF(BL34=1,"-",$Q$6*(0.5*E26*INDEX(fladelast,BK26,1)+IF(E26>0,INDEX(linielast,BR26,1)*(E26-H26)/E26))) -> 11.718 | T26: =IF(BL34=1,"-",$Q$6*C27) -> 9 | U26: =IF(BL34=1,"-",$Q$6*(0.5*I26*INDEX(fladelast,BY26,1)+IF(I26>0,INDEX(linielast,CF26,1)*(I26-L26)/I26))) -> 8.37 | BG26: =E26+0.00001 -> 8.40001 | BH26: =H26 -> 0 | BI26: =I26+0.00001 -> 6.00001 | BJ26: =L26 -> 0 | BK26: 2 | BL26: =INDEX(fladelast,$BK26,1)+INDEX(fladelast,$BK26,2) -> 4.1 | BM26: =$U$6*$O$6 -> 1.1 | BN26: =INDEX(fladelast,$BK26,3) -> 0.8 | BO26: =$U$6*INDEX(fladelast,$BK26,4) -> 1.65 | BP26: =BO26*INDEX(fladelast,$BK26,5) -> 0.99 | BQ26: =INDEX(fladelast,$BK26,6) -> N | BR26: 1 | BS26: =INDEX(linielast,$BR26,1)+INDEX(linielast,$BR26,2) -> 0 | BT26: =$U$6*$O$6 -> 1.1 | BU26: =INDEX(linielast,$BR26,3) -> 0 | BV26: =$U$6*INDEX(linielast,$BR26,4) -> 0 | BW26: =BV26*INDEX(linielast,$BR26,5) -> 0 | BX26: =INDEX(linielast,$BR26,6) -> 0 | BY26: 2 | BZ26: =INDEX(fladelast,$BY26,1)+INDEX(fladelast,$BY26,2) -> 4.1 | CA26: =$U$6*$O$6 -> 1.1 | CB26: =INDEX(fladelast,$BY26,3) -> 0.8 | CC26: =$U$6*INDEX(fladelast,$BY26,4) -> 1.65 | CD26: =CC26*INDEX(fladelast,$BY26,5) -> 0.99 | CE26: =INDEX(fladelast,$BY26,6) -> N | CF26: 1 | CG26: =INDEX(linielast,$CF26,1)+INDEX(linielast,$CF26,2) -> 0 | CH26: =$U$6*$O$6 -> 1.1 | CI26: =INDEX(linielast,$CF26,3) -> 0 | CJ26: =$U$6*INDEX(linielast,$CF26,4) -> 0 | CK26: =CJ26*INDEX(linielast,$CF26,5) -> 0 | CL26: =INDEX(linielast,$CF26,6) -> 0 | CM26: =(C27+D27)*$U$6*$O$6 -> 11 | CN26: =IF($BQ26=CN$24,0.5*$BG26*$BN26*$BO26,0)+IF(AND($BX26=CN$24,$E26>0),($BG26-$BH26)*$BU26*$BV26/$BG26,0)+IF($CE26=CN$24,0.5*$BI26*$CB26*$CC26,0)+IF(AND($CL26=CN$24,$I26>0),($BI26-$BJ26)*$CI26*$CJ26/$BI26,0) -> 0 | CO26: 0 | CP26: 0 | CQ26: 0 | CR26: 0 | CS26: 0 | CT26: 0 | CU26: 9.5040132 | CV26: =IF($BQ26=CV$24,0.5*$BG26*$BN26*$BP26,0)+IF(AND($BX26=CV$24,$E26>0),($BG26-$BH26)*$BU26*$BW26/$BG26,0)+IF($CE26=CV$24,0.5*$BI26*$CB26*$CD26,0)+IF(AND($CL26=CV$24,$I26>0),($BI26-$BJ26)*$CI26*$CK26/$BI26,0) -> 0 | CW26: 0 | CX26: 0 | CY26: 0 | CZ26: 0 | DA26: =IF($BQ26=DA$24,0.5*$BG26*$BN26*$BP26,0)+IF(AND($BX26=DA$24,$E26>0),($BG26-$BH26)*$BU26*$BW26/$BG26,0)+IF($CE26=DA$24,0.5*$BI26*$CB26*$CD26,0)+IF(AND($CL26=DA$24,$I26>0),($BI26-$BJ26)*$CI26*$CK26/$BI26,0) -> 0 | DB26: 0 | DC26: 5.70240792 | DD26: 0 | DE26: 0 | DF26: 0 | DG26: 0 | DH26: 0 | DI26: 0 | DJ26: 0 | DK26: 0 | DL26: 0 | DM26: 0 | DN26: 0 | DO26: 0 | DP26: 0 | DQ26: 0 | DR26: 0 | DS26: 0 | DT26: =IF(DK26>DS26,DK26+SUM(DL26:DR26),DS26+SUM(DD26:DJ26)) -> 0
B27: 4. sal | C27: 10 | D27: 0 | E27: 8.4 | F27: F2 | G27: L1 | H27: 2 | I27: 6 | J27: F2 | K27: L0 | L27: 0 | M27: 51.78804725 | N27: =IF($BL$34=1,"-",CM27+DT27) -> 63.9760583 | O27: 24.4200407 | P27: 42.81907143 | Q27: =IF($BL$34=1,"-",P26+Q26+R26+$U$6*$O$6*(C28+D28)) -> 60.1744 | R27: 20.7075 | S27: =IF(BL34=1,"-",$Q$6*(0.5*E27*INDEX(fladelast,BK27,1)+IF(E27>0,INDEX(linielast,BR27,1)*(E27-H27)/E27))) -> 19.28271429 | T27: =IF(BL34=1,"-",S26+T26+U26+$Q$6*C28) -> 38.088 | U27: =IF(BL34=1,"-",$Q$6*(0.5*I27*INDEX(fladelast,BY27,1)+IF(I27>0,INDEX(linielast,CF27,1)*(I27-L27)/I27))) -> 9.855 | BG27: 8.40001 | BH27: 2 | BI27: 6.00001 | BJ27: 0 | BK27: 3 | BL27: 5.15 | BM27: 1.1 | BN27: 1.5 | BO27: 1.65 | BP27: 0.825 | BQ27: A | BR27: 2 | BS27: 12 | BT27: 1.1 | BU27: 6 | BV27: 1.65 | BW27: 0.825 | BX27: A | BY27: 3 | BZ27: 5.15 | CA27: 1.1 | CB27: 1.5 | CC27: 1.65 | CD27: 0.825 | CE27: A | CF27: 1 | CG27: 0 | CH27: 1.1 | CI27: 0 | CJ27: 0 | CK27: 0 | CL27: 0 | CM27: =CM26+0.5*BG26*(BL26*BM26)+IF(E26>0,(BG26-BH26)*(BS26*BT26)/BG26)+0.5*BI26*(BZ26*CA26)+IF(I26>0,(BI26-BJ26)*(CG26*CH26)/BI26)+(C28+D28)*$U$6*$O$6 -> 54.4720451 | CN27: =IF($BQ27=CN$24,0.5*$BG27*$BN27*$BO27,0)+IF(AND($BX27=CN$24,$E27>0),($BG27-$BH27)*$BU27*$BV27/$BG27,0)+IF($CE27=CN$24,0.5*$BI27*$CB27*$CC27,0)+IF(AND($CL27=CN$24,$I27>0),($BI27-$BJ27)*$CI27*$CJ27/$BI27,0) -> 25.3628847 | CO27: 0 | CP27: 0 | CQ27: 0 | CR27: 0 | CS27: 0 | CT27: 0 | CU27: 0 | CV27: 12.68144235 | CW27: 0 | CX27: 0 | CY27: 0 | CZ27: 0 | DA27: 0 | DB27: 0 | DC27: 0 | DD27: =MAX(DD26+CV26,DL26+CN26) -> 0 | DE27: 0 | DF27: 0 | DG27: 0 | DH27: 0 | DI27: =MAX(DI26+DA26,DQ26+CS26) -> 0 | DJ27: 0 | DK27: =IF(DK26+CU26-DS27>SUM(DD27:DJ27)-SUM(DL27:DR27),DK26+CU26,DS27) -> 9.5040132 | DL27: =DL26+CV26 -> 0 | DM27: 0 | DN27: 0 | DO27: 0 | DP27: 0 | DQ27: =DQ26+DA26 -> 0 | DR27: 0 | DS27: 5.70240792 | DT27: =IF(DK27>DS27,DK27+SUM(DL27:DR27),DS27+SUM(DD27:DJ27)) -> 9.5040132
B28: 3. sal | C28: 10 | D28: 0 | E28: 8.4 | F28: F2 | G28: L1 | H28: 2 | I28: 6 | J28: F2 | K28: L0 | L28: 0 | M28: 51.78804725 | N28: 147.382541 | O28: 24.4200407 | P28: 42.81907143 | Q28: =IF($BL$34=1,"-",P27+Q27+R27+$U$6*$O$6*(C29+D29)) -> 134.7009714 | R28: 20.7075 | S28: =IF(BL34=1,"-",$Q$6*(0.5*E28*INDEX(fladelast,BK28,1)+IF(E28>0,INDEX(linielast,BR28,1)*(E28-H28)/E28))) -> 19.28271429 | T28: =IF(BL34=1,"-",S27+T27+U27+$Q$6*C29) -> 76.22571429 | U28: =IF(BL34=1,"-",$Q$6*(0.5*I28*INDEX(fladelast,BY28,1)+IF(I28>0,INDEX(linielast,CF28,1)*(I28-L28)/I28))) -> 9.855 | BG28: 8.40001 | BH28: 2 | BI28: 6.00001 | BJ28: 0 | BK28: 3 | BL28: 5.15 | BM28: 1.1 | BN28: 1.5 | BO28: 1.65 | BP28: 0.825 | BQ28: A | BR28: 2 | BS28: 12 | BT28: 1.1 | BU28: 6 | BV28: 1.65 | BW28: 0.825 | BX28: A | BY28: 3 | BZ28: 5.15 | CA28: 1.1 | CB28: 1.5 | CC28: 1.65 | CD28: 0.825 | CE28: A | CF28: 1 | CG28: 0 | CH28: 1.1 | CI28: 0 | CJ28: 0 | CK28: 0 | CL28: 0 | CM28: =CM27+0.5*BG27*(BL27*BM27)+IF(E27>0,(BG27-BH27)*(BS27*BT27)/BG27)+0.5*BI27*(BZ27*CA27)+IF(I27>0,(BI27-BJ27)*(CG27*CH27)/BI27)+(C29+D29)*$U$6*$O$6 -> 116.3172483 | CN28: 25.3628847 | CO28: 0 | CP28: 0 | CQ28: =IF($BQ28=CQ$24,0.5*$BG28*$BN28*$BO28,0)+IF(AND($BX28=CQ$24,$E28>0),($BG28-$BH28)*$BU28*$BV28/$BG28,0)+IF($CE28=CQ$24,0.5*$BI28*$CB28*$CC28,0)+IF(AND($CL28=CQ$24,$I28>0),($BI28-$BJ28)*$CI28*$CJ28/$BI28,0) -> 0 | CR28: 0 | CS28: 0 | CT28: 0 | CU28: 0 | CV28: 12.68144235 | CW28: 0 | CX28: 0 | CY28: 0 | CZ28: 0 | DA28: 0 | DB28: 0 | DC28: 0 | DD28: 25.3628847 | DE28: 0 | DF28: 0 | DG28: 0 | DH28: 0 | DI28: 0 | DJ28: 0 | DK28: 5.70240792 | DL28: 12.68144235 | DM28: 0 | DN28: 0 | DO28: 0 | DP28: 0 | DQ28: 0 | DR28: 0 | DS28: 5.70240792 | DT28: 31.06529262
B29: 2. sal | C29: 10 | D29: 0 | E29: 8.4 | F29: F3 | G29: L0 | H29: 0 | I29: 6 | J29: F3 | K29: L0 | L29: 0 | M29: 43.4280517 | N29: 221.9091866 | O29: 31.0200517 | P29: 36.498 | Q29: =IF($BL$34=1,"-",P28+Q28+R28+$U$6*$O$6*(C30+D30)) -> 209.2275429 | R29: 26.07 | S29: =IF(BL34=1,"-",$Q$6*(0.5*E29*INDEX(fladelast,BK29,1)+IF(E29>0,INDEX(linielast,BR29,1)*(E29-H29)/E29))) -> 13.797 | T29: =IF(BL34=1,"-",S28+T28+U28+$Q$6*C30) -> 114.3634286 | U29: =IF(BL34=1,"-",$Q$6*(0.5*I29*INDEX(fladelast,BY29,1)+IF(I29>0,INDEX(linielast,CF29,1)*(I29-L29)/I29))) -> 9.855 | BG29: 8.40001 | BH29: 0 | BI29: 6.00001 | BJ29: 0 | BK29: 4 | BL29: 5.65 | BM29: 1.1 | BN29: 2.5 | BO29: 1.65 | BP29: 0.99 | BQ29: B | BR29: 1 | BS29: 0 | BT29: 1.1 | BU29: 0 | BV29: 0 | BW29: 0 | BX29: 0 | BY29: 4 | BZ29: 5.65 | CA29: 1.1 | CB29: 2.5 | CC29: 1.65 | CD29: 0.99 | CE29: B | CF29: 1 | CG29: 0 | CH29: 1.1 | CI29: 0 | CJ29: 0 | CK29: 0 | CL29: 0 | CM29: =CM28+0.5*BG28*(BL28*BM28)+IF(E28>0,(BG28-BH28)*(BS28*BT28)/BG28)+0.5*BI28*(BZ28*CA28)+IF(I28>0,(BI28-BJ28)*(CG28*CH28)/BI28)+(C30+D30)*$U$6*$O$6 -> 178.1624516 | CN29: 0 | CO29: 29.70004125 | CP29: 0 | CQ29: 0 | CR29: 0 | CS29: 0 | CT29: 0 | CU29: =IF($BQ29=CU$24,0.5*$BG29*$BN29*$BO29,0)+IF(AND($BX29=CU$24,$E29>0),($BG29-$BH29)*$BU29*$BV29/$BG29,0)+IF($CE29=CU$24,0.5*$BI29*$CB29*$CC29,0)+IF(AND($CL29=CU$24,$I29>0),($BI29-$BJ29)*$CI29*$CJ29/$BI29,0) -> 0 | CV29: 0 | CW29: 17.82002475 | CX29: 0 | CY29: 0 | CZ29: 0 | DA29: 0 | DB29: 0 | DC29: 0 | DD29: 38.04432705 | DE29: 0 | DF29: 0 | DG29: 0 | DH29: 0 | DI29: =MAX(DI28+DA28,DQ28+CS28) -> 0 | DJ29: 0 | DK29: 5.70240792 | DL29: 25.3628847 | DM29: 0 | DN29: 0 | DO29: 0 | DP29: 0 | DQ29: 0 | DR29: 0 | DS29: 5.70240792 | DT29: 43.74673497
B30: 1. sal | C30: 10 | D30: 0 | E30: 8.4 | F30: F4 | G30: L0 | H30: 0 | I30: 6 | J30: F4 | K30: L0 | L30: 0 | M30: 78.07809295 | N30: 307.35729 | O30: 55.77009295 | P30: 78.078 | Q30: =IF($BL$34=1,"-",P29+Q29+R29+$U$6*$O$6*(C31+D31)) -> 282.7955429 | R30: 55.77 | S30: =IF(BL34=1,"-",$Q$6*(0.5*E30*INDEX(fladelast,BK30,1)+IF(E30>0,INDEX(linielast,BR30,1)*(E30-H30)/E30))) -> 13.797 | T30: =IF(BL34=1,"-",S29+T29+U29+$Q$6*C31) -> 147.0154286 | U30: =IF(BL34=1,"-",$Q$6*(0.5*I30*INDEX(fladelast,BY30,1)+IF(I30>0,INDEX(linielast,CF30,1)*(I30-L30)/I30))) -> 9.855 | BG30: 8.40001 | BH30: 0 | BI30: 6.00001 | BJ30: 0 | BK30: 5 | BL30: 5.65 | BM30: 1.1 | BN30: 7.5 | BO30: 1.65 | BP30: 1.65 | BQ30: E | BR30: 1 | BS30: 0 | BT30: 1.1 | BU30: 0 | BV30: 0 | BW30: 0 | BX30: 0 | BY30: 5 | BZ30: 5.65 | CA30: 1.1 | CB30: 7.5 | CC30: 1.65 | CD30: 1.65 | CE30: E | CF30: 1 | CG30: 0 | CH30: 1.1 | CI30: 0 | CJ30: 0 | CK30: 0 | CL30: 0 | CM30: =CM29+0.5*BG29*(BL29*BM29)+IF(E29>0,(BG29-BH29)*(BS29*BT29)/BG29)+0.5*BI29*(BZ29*CA29)+IF(I29>0,(BI29-BJ29)*(CG29*CH29)/BI29)+(C31+D31)*$U$6*$O$6 -> 233.9105137 | CN30: =IF($BQ30=CN$24,0.5*$BG30*$BN30*$BO30,0)+IF(AND($BX30=CN$24,$E30>0),($BG30-$BH30)*$BU30*$BV30/$BG30,0)+IF($CE30=CN$24,0.5*$BI30*$CB30*$CC30,0)+IF(AND($CL30=CN$24,$I30>0),($BI30-$BJ30)*$CI30*$CJ30/$BI30,0) -> 0 | CO30: 0 | CP30: 0 | CQ30: 0 | CR30: 89.10012375 | CS30: 0 | CT30: 0 | CU30: 0 | CV30: 0 | CW30: 0 | CX30: 0 | CY30: 0 | CZ30: 89.10012375 | DA30: 0 | DB30: 0 | DC30: 0 | DD30: 38.04432705 | DE30: 29.70004125 | DF30: 0 | DG30: 0 | DH30: 0 | DI30: 0 | DJ30: 0 | DK30: 5.70240792 | DL30: 25.3628847 | DM30: 17.82002475 | DN30: 0 | DO30: 0 | DP30: 0 | DQ30: 0 | DR30: 0 | DS30: 5.70240792 | DT30: 73.44677622
B31: Stue | C31: 10 | D31: 0 | E31: 8.4 | F31: F5 | G31: L0 | H31: 0 | I31: 6 | J31: F5 | K31: L2 | L31: 3 | M31: 65.37307783 | N31: 452.2054759 | O31: 59.34509891 | P31: 54.285 | Q31: =IF($BL$34=1,"-",P30+Q30+R30+$U$6*$O$6*(C32+D32)) -> 427.6435429 | R31: 48.125 | S31: =IF(BL34=1,"-",$Q$6*(0.5*E31*INDEX(fladelast,BK31,1)+IF(E31>0,INDEX(linielast,BR31,1)*(E31-H31)/E31))) -> 15.687 | T31: =IF(BL34=1,"-",S30+T30+U30+$Q$6*C32) -> 179.6674286 | U31: =IF(BL34=1,"-",$Q$6*(0.5*I31*INDEX(fladelast,BY31,1)+IF(I31>0,INDEX(linielast,CF31,1)*(I31-L31)/I31))) -> 11.205 | BG31: 8.40001 | BH31: 0 | BI31: 6.00001 | BJ31: 3 | BK31: 6 | BL31: 8.15 | BM31: 1.1 | BN31: 4 | BO31: 1.65 | BP31: 0.99 | BQ31: D | BR31: 1 | BS31: 0 | BT31: 1.1 | BU31: 0 | BV31: 0 | BW31: 0 | BX31: 0 | BY31: 6 | BZ31: 8.15 | CA31: 1.1 | CB31: 4 | CC31: 1.65 | CD31: 0.99 | CE31: D | CF31: 3 | CG31: 8 | CH31: 1.1 | CI31: 10 | CJ31: 1.65 | CK31: 0.99 | CL31: D | CM31: =CM30+0.5*BG30*(BL30*BM30)+IF(E30>0,(BG30-BH30)*(BS30*BT30)/BG30)+0.5*BI30*(BZ30*CA30)+IF(I30>0,(BI30-BJ30)*(CG30*CH30)/BI30)+(C32+D32)*$U$6*$O$6 -> 289.6585759 | CN31: 0 | CO31: 0 | CP31: 0 | CQ31: 55.77007975 | CR31: 0 | CS31: 0 | CT31: 0 | CU31: 0 | CV31: 0 | CW31: 0 | CX31: 0 | CY31: 33.46204785 | CZ31: 0 | DA31: 0 | DB31: 0 | DC31: 0 | DD31: 38.04432705 | DE31: 29.70004125 | DF31: 0 | DG31: 0 | DH31: 89.10012375 | DI31: 0 | DJ31: 0 | DK31: 5.70240792 | DL31: 25.3628847 | DM31: 17.82002475 | DN31: 0 | DO31: 0 | DP31: 89.10012375 | DQ31: 0 | DR31: 0 | DS31: 5.70240792 | DT31: 162.5469
B32: Kld. | C32: 10 | D32: 0 | N32: 576.9236526 | Q32: =IF($BL$34=1,"-",P31+Q31+R31) -> 530.0535429 | T32: =IF(BL34=1,"-",S31+T31+U31) -> 206.5594286 | CM32: =CM31+0.5*BG31*(BL31*BM31)+IF(E31>0,(BG31-BH31)*(BS31*BT31)/BG31)+0.5*BI31*(BZ31*CA31)+IF(I31>0,(BI31-BJ31)*(CG31*CH31)/BI31) -> 358.6066729 | CN32: 0 | CO32: 0 | CP32: 0 | CQ32: 0 | CR32: 0 | CS32: 0 | CT32: 0 | CU32: 0 | CV32: 0 | CW32: 0 | CX32: 0 | CY32: 0 | CZ32: 0 | DA32: 0 | DB32: 0 | DC32: 0 | DD32: 38.04432705 | DE32: 29.70004125 | DF32: 0 | DG32: 55.77007975 | DH32: 89.10012375 | DI32: 0 | DJ32: 0 | DK32: 5.70240792 | DL32: 25.3628847 | DM32: 17.82002475 | DN32: 0 | DO32: 33.46204785 | DP32: 89.10012375 | DQ32: 0 | DR32: 0 | DS32: 5.70240792 | DT32: 218.3169797
B33: Vejledning: | D33: Betonelementbyggeriers statik | L33: Polyteknisk Forlag 2010 eller www.bef.dk | M33: NB: Resultaterne skal altid kontrolleres af ansvarlig statiker
BG34: Fejltabel | BL34: =IF(OR(BL35=1,BL36=1,BL38=1,BL39=1),1,0) -> 0 | BM34: =BM35&BM36&BM37&BM38&BM39&BM40&BM41&BM42&BM43&BM44&BM45&BM46 -> 
BG35: Programmet modtager ikke negative inddata ! | BL35: =IF(MIN(O6,Q6,U6,P11:T15,P20:T21,C27:D32,E26:E31,H26:H31,I26:I31,L26:L31)<0,1,0) -> 0 | BM35: =IF(BL35=0,"",BG35) -> 
BG36: Linielast udenfor dækfelt ! | BL36: =IF(OR(H26>E26,H27>E27,H28>E28,H29>E29,H30>E30,H31>E31,L26>I26,L27>I27,L28>I28,L29>I29,L30>I30,L31>I31),1,0) -> 0 | BM36: =IF(BL36=0,"",BG36) -> 
BG37: I kombination med lastkategori E bør lastreduktionsfaktoren for sne ændres | BL37: =IF(AND(BQ10=1,MAX(BR11:BR17)=1),1,0) -> 0 | BM37: =IF(BL37=0,"",BG37) -> 
BG38: Partialkoefficient på nyttelast mindst 1 ! | BL38: =IF(OR(S11<1,S12<1,S13<1,S14<1,S15<1,S20<1,S21<1),1,0) -> 0 | BM38: =IF(BL38=0,"",BG38) -> 
BG39: Reduktionsfaktor højst 1 ! | BL39: =IF(OR(T11>1,T12>1,T13>1,T14>1,T15>1,T20>1,T21>1),1,0) -> 0 | BM39: =IF(BL39=0,"",BG39) -> 

Sheet Brand
M2: =Kold!M2 -> Lastnedføring version 3.0 | U2: =Kold!U2 -> Udgivet af Betonelement-Foreningen juni 2012
B3: Sag: | D3: =Kold!D3 -> Betonelementhuset | J3: Nr.: | K3: =Kold!K3 -> 23 - 4545 | M3: =BM34 -> 
B4: Emne: | D4: =Kold!D4 -> Linie B, modul 5-12. | J4: Init: | K4: =Kold!K4 -> JFJ
D5: Branddimensioneringstilstande
M6: Egenvægt, gg,sup = | O6: 1 | P6: gg,inf = | Q6: 1 | R6: Konsekvensklasse: KFI = | U6: 1
M8: Fladelaste | P8: gk | Q8: gfri,k | R8: qk | S8: y1 | T8: y2 | U8: Kategori
P9: (kN/m2) | Q9: (kN/m2) | R9: (kN/m2) | BG9: Lastkategorier | BJ9: y0 | BK9: y1 | BL9: y2
M10: F0 | P10: 0 | Q10: 0 | R10: 0 | BG10: A | BJ10: 1 | BK10: 2 | BL10: 3
M11: =BG52 -> F1 | N11: Tagflade, sne | O11: 0 | P11: 3.1 | Q11: 1 | R11: 0.8 | S11: 0.2 | T11: 0 | U11: =BO52 -> N | BG11: B | BH11: F1 | BI11: =Kold!BI11 -> 8 | BJ11: =INDEX(psi,$BI11,BJ$10) -> 0.6 | BK11: 0.2 | BL11: 0
I12: L1 og L2 betegner linielaste. | M12: F2 | N12: Boligarealer | O12: 0 | P12: 3.65 | Q12: 1.5 | R12: 1.5 | S12: 0.3 | T12: 0.2 | U12: =BO53 -> A | BG12: C | BH12: F2 | BI12: =Kold!BI12 -> 1 | BJ12: 0.5 | BK12: 0.3 | BL12: 0.2
I13: Lv og Lh er dækkenes spændvidder. | M13: F3 | N13: Kontorer | O13: 0 | P13: 3.65 | Q13: 2 | R13: 2.5 | S13: 0.4 | T13: 0.2 | U13: =BO54 -> B | BG13: D | BH13: F3 | BI13: =Kold!BI13 -> 2 | BJ13: 0.6 | BK13: 0.4 | BL13: 0.2
I14: Resultanter på underliggende væg | M14: F4 | N14: Kontor med arkiv | O14: 0 | P14: 3.65 | Q14: 2 | R14: 7.5 | S14: 0.8 | T14: 0.7 | U14: =BO55 -> E | BG14: E | BH14: F4 | BI14: =Kold!BI14 -> 5 | BJ14: 1 | BK14: 0.8 | BL14: 0.7
I15: eller bjælke: | M15: =BG56 -> F5 | N15: Butiksarealer | O15: 0 | P15: 4.15 | Q15: 4 | R15: 4 | S15: 0.6 | T15: 0.5 | U15: =BO56 -> D | BG15: F | BH15: F5 | BI15: =Kold!BI15 -> 4 | BJ15: 0.6 | BK15: 0.6 | BL15: 0.5
BG16: G | BH16: L1 | BI16: =Kold!BI16 -> 1 | BJ16: 0.5 | BK16: 0.3 | BL16: 0.2
M17: Linielaste | P17: gk | Q17: gfri,k | R17: qk | S17: y1 | T17: y2 | U17: Kategori | BG17: N | BH17: L2 | BI17: =Kold!BI17 -> 4 | BJ17: 0.6 | BK17: 0.6 | BL17: 0.5
P18: (kN/m) | Q18: (kN/m) | R18: (kN/m)
M19: L0 | P19: 0 | Q19: 0 | R19: 0
I20: nv og nh : Laste fra dæk i etagen | M20: =BG61 -> L1 | N20: Badeværelser | O20: 0 | P20: 8 | Q20: 4 | R20: 6 | S20: 0.3 | T20: 0.2 | U20: =BO61 -> A
I21: no : Last fra højereliggende dæk og | M21: =BG62 -> L2 | N21: Komprimator | O21: 0 | P21: 0 | Q21: 8 | R21: 10 | S21: 0.6 | T21: 0.5 | U21: =BO62 -> D
I22: fra egenvægte i bærelinie
B23: Etage | C23: Egenvægt i bærelinie | E23: Laste på venstre dækfelt | I23: Laste på højre dækfelt | M23: maksimalværdier | P23: reducerede værdier | S23: minimalværdier | BG23: Spændvidder | BK23: Fladelaste, venstre dækfelt | BR23: Linielaste, venstre dækfelt | BY23: Fladelaste, højre dækfelt | CF23: Linielaste, højre dækfelt | CM23: Ng | CN23: DNmax (q) | CV23: DNsædv (q) | DD23: Nmax (q) | DL23: Nsædv (q) | DT23: No (q)
C24: gk | D24: gfri,k | E24: Lv | F24: Fladelast | G24: Linielast | H24: sv | I24: Lh | J24: Fladelast | K24: Linielast | L24: sh | M24: nv | N24: no | O24: nh | P24: nv | Q24: no | R24: nh | S24: nv | T24: no | U24: nh | BG24: Lv | BH24: sv | BI24: Lh | BJ24: sh | BL24: gk | BM24: gg | BN24: qk | BO24: yq1 | BP24: yq2 | BQ24: Kategori | BS24: gk | BT24: gg | BU24: qk | BV24: yq1 | BW24: yq2 | BX24: Kategori | BZ24: gk | CA24: gg | CB24: qk | CC24: yq1 | CD24: yq2 | CE24: Kategori | CG24: gk | CH24: gg | CI24: qk | CJ24: yq1 | CK24: yq2 | CL24: Kategori | CN24: A | CO24: B | CP24: C | CQ24: D | CR24: E | CS24: F | CT24: G | CU24: N | CV24: A | CW24: B | CX24: C | CY24: D | CZ24: E | DA24: F | DB24: G | DC24: N | DD24: A | DE24: B | DF24: C | DG24: D | DH24: E | DI24: F | DJ24: G | DK24: N | DL24: A | DM24: B | DN24: C | DO24: D | DP24: E | DQ24: F | DR24: G | DS24: N
C25: (kN/m) | D25: (kN/m) | E25: (m) | H25: (m) | I25: (m) | L25: (m) | M25: (kN/m) | N25: (kN/m) | O25: (kN/m) | P25: (kN/m) | Q25: (kN/m) | R25: (kN/m) | S25: (kN/m) | T25: (kN/m) | U25: (kN/m)
B26: =Kold!B26 -> Tag | E26: =Kold!E26 -> 8.4 | F26: =INDEX($BG$51:$BG$56,BK26,1) -> F1 | G26: =INDEX($BG$60:$BG$62,BR26,1) -> L0 | H26: =Kold!H26 -> 0 | I26: =Kold!I26 -> 6 | J26: =INDEX($BG$51:$BG$56,BY26,1) -> F1 | K26: =INDEX($BG$60:$BG$62,CF26,1) -> L0 | L26: =Kold!L26 -> 0 | M26: =IF($BL$34=1,"-",0.5*BG26*(BL26*BM26+BN26*BO26)+IF(E26>0,(BG26-BH26)*(BS26*BT26+BU26*BV26)/BG26,0)) -> 17.8920213 | N26: =IF($BL$34=1,"-",CM26+DT26) -> 10 | O26: =IF($BL$34=1,"-",0.5*BI26*(BZ26*CA26+CB26*CC26)+IF(I26>0,(BI26-BJ26)*(CG26*CH26+CI26*CJ26)/BI26)) -> 12.7800213 | P26: =IF($BL$34=1,"-",$U$6*$O$6*(0.5*E26*(INDEX(fladelast,BK26,1)+INDEX(fladelast,BK26,2)+INDEX(fladelast,BK26,3)*INDEX(fladelast,BK26,5))+IF(E26>0,(INDEX(linielast,BR26,1)+INDEX(linielast,BR26,2)+INDEX(linielast,BR26,3)*INDEX(linielast,BR26,5))*(E26-H26)/E26,0))) -> 17.22 | Q26: =IF($BL$34=1,"-",$U$6*$O$6*(C27+D27)) -> 10 | R26: =IF($BL$34=1,"-",$U$6*$O$6*(0.5*I26*(INDEX(fladelast,BY26,1)+INDEX(fladelast,BY26,2)+INDEX(fladelast,BY26,3)*INDEX(fladelast,BY26,5))+IF(I26>0,(INDEX(linielast,CF26,1)+INDEX(linielast,CF26,2)+INDEX(linielast,CF26,3)*INDEX(linielast,CF26,5))*(I26-L26)/I26))) -> 12.3 | S26: =IF(BL34=1,"-",$Q$6*(0.5*E26*INDEX(fladelast,BK26,1)+IF(E26>0,INDEX(linielast,BR26,1)*(E26-H26)/E26))) -> 13.02 | T26: =IF(BL34=1,"-",$Q$6*C27) -> 10 | U26: =IF(BL34=1,"-",$Q$6*(0.5*I26*INDEX(fladelast,BY26,1)+IF(I26>0,INDEX(linielast,CF26,1)*(I26-L26)/I26))) -> 9.3 | BG26: =E26+0.00001 -> 8.40001 | BH26: =H26 -> 0 | BI26: =I26+0.00001 -> 6.00001 | BJ26: =L26 -> 0 | BK26: =Kold!BK26 -> 2 | BL26: =INDEX(fladelast,$BK26,1)+INDEX(fladelast,$BK26,2) -> 4.1 | BM26: =$U$6*$O$6 -> 1 | BN26: =INDEX(fladelast,$BK26,3) -> 0.8 | BO26: =$U$6*INDEX(fladelast,$BK26,4) -> 0.2 | BP26: =INDEX(fladelast,$BK26,5) -> 0 | BQ26: =INDEX(fladelast,$BK26,6) -> N | BR26: =Kold!BR26 -> 1 | BS26: =INDEX(linielast,$BR26,1)+INDEX(linielast,$BR26,2) -> 0 | BT26: =$U$6*$O$6 -> 1 | BU26: =INDEX(linielast,$BR26,3) -> 0 | BV26: =$U$6*INDEX(linielast,$BR26,4) -> 0 | BW26: =INDEX(linielast,$BR26,5) -> 0 | BX26: =INDEX(linielast,$BR26,6) -> 0 | BY26: =Kold!BY26 -> 2 | BZ26: =INDEX(fladelast,$BY26,1)+INDEX(fladelast,$BY26,2) -> 4.1 | CA26: =$U$6*$O$6 -> 1 | CB26: =INDEX(fladelast,$BY26,3) -> 0.8 | CC26: =$U$6*INDEX(fladelast,$BY26,4) -> 0.2 | CD26: =INDEX(fladelast,$BY26,5) -> 0 | CE26: =INDEX(fladelast,$BY26,6) -> N | CF26: =Kold!CF26 -> 1 | CG26: =INDEX(linielast,$CF26,1)+INDEX(linielast,$CF26,2) -> 0 | CH26: =$U$6*$O$6 -> 1 | CI26: =INDEX(linielast,$CF26,3) -> 0 | CJ26: =$U$6*INDEX(linielast,$CF26,4) -> 0 | CK26: =INDEX(linielast,$CF26,5) -> 0 | CL26: =INDEX(linielast,$CF26,6) -> 0 | CM26: =(C27+D27)*$U$6*$O$6 -> 10 | CN26: =IF($BQ26=CN$24,0.5*$BG26*$BN26*$BO26,0)+IF(AND($BX26=CN$24,$E26>0),($BG26-$BH26)*$BU26*$BV26/$BG26,0)+IF($CE26=CN$24,0.5*$BI26*$CB26*$CC26,0)+IF(AND($CL26=CN$24,$I26>0),($BI26-$BJ26)*$CI26*$CJ26/$BI26,0) -> 0 | CO26: 0 | CP26: 0 | CQ26: 0 | CR26: 0 | CS26: 0 | CT26: 0 | CU26: 1.1520016 | CV26: =IF($BQ26=CV$24,0.5*$BG26*$BN26*$BP26,0)+IF(AND($BX26=CV$24,$E26>0),($BG26-$BH26)*$BU26*$BW26/$BG26,0)+IF($CE26=CV$24,0.5*$BI26*$CB26*$CD26,0)+IF(AND($CL26=CV$24,$I26>0),($BI26-$BJ26)*$CI26*$CK26/$BI26,0) -> 0 | CW26: 0 | CX26: 0 | CY26: 0 | CZ26: 0 | DA26: 0 | DB26: 0 | DC26: 0 | DD26: 0 | DE26: 0 | DF26: 0 | DG26: 0 | DH26: 0 | DI26: 0 | DJ26: 0 | DK26: 0 | DL26: 0 | DM26: 0 | DN26: 0 | DO26: 0 | DP26: 0 | DQ26: 0 | DR26: 0 | DS26: 0 | DT26: =IF(DK26>DS26,DK26+SUM(DL26:DR26),DS26+SUM(DD26:DJ26)) -> 0
B27: =Kold!B27 -> 4. sal | C27: =Kold!C27 -> 10 | D27: =Kold!D27 -> 0 | E27: =Kold!E27 -> 8.4 | F27: F2 | G27: L1 | H27: =Kold!H27 -> 2 | I27: =Kold!I27 -> 6 | J27: F2 | K27: L0 | L27: =Kold!L27 -> 0 | M27: 34.03431763 | N27: =IF($BL$34=1,"-",CM27+DT27) -> 50.6720426 | O27: 16.800028 | P27: 32.94714286 | Q27: =IF($BL$34=1,"-",P26+Q26+R26+$U$6*$O$6*(C28+D28)) -> 49.52 | R27: 16.35 | S27: =IF(BL34=1,"-",$Q$6*(0.5*E27*INDEX(fladelast,BK27,1)+IF(E27>0,INDEX(linielast,BR27,1)*(E27-H27)/E27))) -> 21.4252381 | T27: =IF(BL34=1,"-",S26+T26+U26+$Q$6*C28) -> 42.32 | U27: =IF(BL34=1,"-",$Q$6*(0.5*I27*INDEX(fladelast,BY27,1)+IF(I27>0,INDEX(linielast,CF27,1)*(I27-L27)/I27))) -> 10.95 | BG27: 8.40001 | BH27: 2 | BI27: 6.00001 | BJ27: 0 | BK27: =Kold!BK27 -> 3 | BL27: 5.15 | BM27: 1 | BN27: 1.5 | BO27: 0.3 | BP27: 0.2 | BQ27: A | BR27: =Kold!BR27 -> 2 | BS27: 12 | BT27: 1 | BU27: 6 | BV27: 0.3 | BW27: 0.2 | BX27: A | BY27: =Kold!BY27 -> 3 | BZ27: 5.15 | CA27: 1 | CB27: 1.5 | CC27: 0.3 | CD27: 0.2 | CE27: A | CF27: =Kold!CF27 -> 1 | CG27: 0 | CH27: 1 | CI27: 0 | CJ27: 0 | CK27: 0 | CL27: 0 | CM27: =CM26+0.5*BG26*(BL26*BM26)+IF(E26>0,(BG26-BH26)*(BS26*BT26)/BG26)+0.5*BI26*(BZ26*CA26)+IF(I26>0,(BI26-BJ26)*(CG26*CH26)/BI26)+(C28+D28)*$U$6*$O$6 -> 49.520041 | CN27: 4.611433582 | CO27: 0 | CP27: 0 | CQ27: 0 | CR27: 0 | CS27: 0 | CT27: 0 | CU27: 0 | CV27: 3.074289054 | CW27: 0 | CX27: 0 | CY27: 0 | CZ27: 0 | DA27: 0 | DB27: 0 | DC27: 0 | DD27: =MAX(DD26+CV26,DL26+CN26) -> 0 | DE27: 0 | DF27: 0 | DG27: 0 | DH27: 0 | DI27: 0 | DJ27: 0 | DK27: =IF(DK26+CU26-DS27>SUM(DD27:DJ27)-SUM(DL27:DR27),DK26+CU26,DS27) -> 1.1520016 | DL27: =DL26+CV26 -> 0 | DM27: 0 | DN27: 0 | DO27: 0 | DP27: 0 | DQ27: 0 | DR27: 0 | DS27: 0 | DT27: =IF(DK27>DS27,DK27+SUM(DL27:DR27),DS27+SUM(DD27:DJ27)) -> 1.1520016
B28: =Kold!B28 -> 3. sal | C28: =Kold!C28 -> 10 | D28: =Kold!D28 -> 0 | E28: =Kold!E28 -> 8.4 | F28: F2 | G28: L1 | H28: =Kold!H28 -> 2 | I28: =Kold!I28 -> 6 | J28: F2 | K28: L0 | L28: =Kold!L28 -> 0 | M28: 34.03431763 | N28: 110.3543866 | O28: 16.800028 | P28: 32.94714286 | Q28: =IF($BL$34=1,"-",P27+Q27+R27+$U$6*$O$6*(C29+D29)) -> 108.8171429 | R28: 16.35 | S28: =IF(BL34=1,"-",$Q$6*(0.5*E28*INDEX(fladelast,BK28,1)+IF(E28>0,INDEX(linielast,BR28,1)*(E28-H28)/E28))) -> 21.4252381 | T28: =IF(BL34=1,"-",S27+T27+U27+$Q$6*C29) -> 84.6952381 | U28: =IF(BL34=1,"-",$Q$6*(0.5*I28*INDEX(fladelast,BY28,1)+IF(I28>0,INDEX(linielast,CF28,1)*(I28-L28)/I28))) -> 10.95 | BG28: 8.40001 | BH28: 2 | BI28: 6.00001 | BJ28: 0 | BK28: =Kold!BK28 -> 3 | BL28: 5.15 | BM28: 1 | BN28: 1.5 | BO28: 0.3 | BP28: 0.2 | BQ28: A | BR28: =Kold!BR28 -> 2 | BS28: 12 | BT28: 1 | BU28: 6 | BV28: 0.3 | BW28: 0.2 | BX28: A | BY28: =Kold!BY28 -> 3 | BZ28: 5.15 | CA28: 1 | CB28: 1.5 | CC28: 0.3 | CD28: 0.2 | CE28: A | CF28: =Kold!CF28 -> 1 | CG28: 0 | CH28: 1 | CI28: 0 | CJ28: 0 | CK28: 0 | CL28: 0 | CM28: =CM27+0.5*BG27*(BL27*BM27)+IF(E27>0,(BG27-BH27)*(BS27*BT27)/BG27)+0.5*BI27*(BZ27*CA27)+IF(I27>0,(BI27-BJ27)*(CG27*CH27)/BI27)+(C29+D29)*$U$6*$O$6 -> 105.742953 | CN28: 4.611433582 | CO28: 0 | CP28: 0 | CQ28: 0 | CR28: 0 | CS28: 0 | CT28: 0 | CU28: 0 | CV28: 3.074289054 | CW28: 0 | CX28: 0 | CY28: 0 | CZ28: 0 | DA28: 0 | DB28: 0 | DC28: 0 | DD28: 4.611433582 | DE28: 0 | DF28: 0 | DG28: 0 | DH28: 0 | DI28: 0 | DJ28: 0 | DK28: 0 | DL28: 3.074289054 | DM28: 0 | DN28: 0 | DO28: 0 | DP28: 0 | DQ28: 0 | DR28: 0 | DS28: 0 | DT28: 4.611433582
B29: =Kold!B29 -> 2. sal | C29: =Kold!C29 -> 10 | D29: =Kold!D29 -> 0 | E29: =Kold!E29 -> 8.4 | F29: F3 | G29: L0 | H29: =Kold!H29 -> 0 | I29: =Kold!I29 -> 6 | J29: F3 | K29: L0 | L29: =Kold!L29 -> 0 | M29: 27.93003325 | N29: 169.6515877 | O29: 19.95003325 | P29: 25.83 | Q29: =IF($BL$34=1,"-",P28+Q28+R28+$U$6*$O$6*(C30+D30)) -> 168.1142857 | R29: 18.45 | S29: =IF(BL34=1,"-",$Q$6*(0.5*E29*INDEX(fladelast,BK29,1)+IF(E29>0,INDEX(linielast,BR29,1)*(E29-H29)/E29))) -> 15.33 | T29: =IF(BL34=1,"-",S28+T28+U28+$Q$6*C30) -> 127.0704762 | U29: =IF(BL34=1,"-",$Q$6*(0.5*I29*INDEX(fladelast,BY29,1)+IF(I29>0,INDEX(linielast,CF29,1)*(I29-L29)/I29))) -> 10.95 | BG29: 8.40001 | BH29: 0 | BI29: 6.00001 | BJ29: 0 | BK29: =Kold!BK29 -> 4 | BL29: 5.65 | BM29: 1 | BN29: 2.5 | BO29: 0.4 | BP29: 0.2 | BQ29: B | BR29: =Kold!BR29 -> 1 | BS29: 0 | BT29: 1 | BU29: 0 | BV29: 0 | BW29: 0 | BX29: 0 | BY29: =Kold!BY29 -> 4 | BZ29: 5.65 | CA29: 1 | CB29: 2.5 | CC29: 0.4 | CD29: 0.2 | CE29: B | CF29: =Kold!CF29 -> 1 | CG29: 0 | CH29: 1 | CI29: 0 | CJ29: 0 | CK29: 0 | CL29: 0 | CM29: =CM28+0.5*BG28*(BL28*BM28)+IF(E28>0,(BG28-BH28)*(BS28*BT28)/BG28)+0.5*BI28*(BZ28*CA28)+IF(I28>0,(BI28-BJ28)*(CG28*CH28)/BI28)+(C30+D30)*$U$6*$O$6 -> 161.9658651 | CN29: 0 | CO29: 7.20001 | CP29: 0 | CQ29: 0 | CR29: 0 | CS29: 0 | CT29: 0 | CU29: 0 | CV29: 0 | CW29: 3.600005 | CX29: 0 | CY29: 0 | CZ29: 0 | DA29: 0 | DB29: 0 | DC29: 0 | DD29: 7.685722636 | DE29: 0 | DF29: 0 | DG29: 0 | DH29: 0 | DI29: 0 | DJ29: 0 | DK29: 0 | DL29: 6.148578109 | DM29: 0 | DN29: 0 | DO29: 0 | DP29: 0 | DQ29: 0 | DR29: 0 | DS29: 0 | DT29: 7.685722636
B30: =Kold!B30 -> 1. sal | C30: =Kold!C30 -> 10 | D30: =Kold!D30 -> 0 | E30: =Kold!E30 -> 8.4 | F30: F4 | G30: L0 | H30: =Kold!H30 -> 0 | I30: =Kold!I30 -> 6 | J30: F4 | K30: L0 | L30: =Kold!L30 -> 0 | M30: 48.93005825 | N30: 227.5316542 | O30: 34.95005825 | P30: 45.78 | Q30: =IF($BL$34=1,"-",P29+Q29+R29+$U$6*$O$6*(C31+D31)) -> 222.3942857 | R30: 32.7 | S30: =IF(BL34=1,"-",$Q$6*(0.5*E30*INDEX(fladelast,BK30,1)+IF(E30>0,INDEX(linielast,BR30,1)*(E30-H30)/E30))) -> 15.33 | T30: =IF(BL34=1,"-",S29+T29+U29+$Q$6*C31) -> 163.3504762 | U30: =IF(BL34=1,"-",$Q$6*(0.5*I30*INDEX(fladelast,BY30,1)+IF(I30>0,INDEX(linielast,CF30,1)*(I30-L30)/I30))) -> 10.95 | BG30: 8.40001 | BH30: 0 | BI30: 6.00001 | BJ30: 0 | BK30: =Kold!BK30 -> 5 | BL30: 5.65 | BM30: 1 | BN30: 7.5 | BO30: 0.8 | BP30: 0.7 | BQ30: E | BR30: =Kold!BR30 -> 1 | BS30: 0 | BT30: 1 | BU30: 0 | BV30: 0 | BW30: 0 | BX30: 0 | BY30: =Kold!BY30 -> 5 | BZ30: 5.65 | CA30: 1 | CB30: 7.5 | CC30: 0.8 | CD30: 0.7 | CE30: E | CF30: =Kold!CF30 -> 1 | CG30: 0 | CH30: 1 | CI30: 0 | CJ30: 0 | CK30: 0 | CL30: 0 | CM30: =CM29+0.5*BG29*(BL29*BM29)+IF(E29>0,(BG29-BH29)*(BS29*BT29)/BG29)+0.5*BI29*(BZ29*CA29)+IF(I29>0,(BI29-BJ29)*(CG29*CH29)/BI29)+(C31+D31)*$U$6*$O$6 -> 212.6459216 | CN30: 0 | CO30: 0 | CP30: 0 | CQ30: 0 | CR30: 43.20006 | CS30: 0 | CT30: 0 | CU30: 0 | CV30: 0 | CW30: 0 | CX30: 0 | CY30: 0 | CZ30: 37.8000525 | DA30: 0 | DB30: 0 | DC30: 0 | DD30: 7.685722636 | DE30: 7.20001 | DF30: 0 | DG30: 0 | DH30: 0 | DI30: 0 | DJ30: 0 | DK30: 0 | DL30: 6.148578109 | DM30: 3.600005 | DN30: 0 | DO30: 0 | DP30: 0 | DQ30: 0 | DR30: 0 | DS30: 0 | DT30: 14.88573264
B31: =Kold!B31 -> Stue | C31: =Kold!C31 -> 10 | D31: =Kold!D31 -> 0 | E31: =Kold!E31 -> 8.4 | F31: F5 | G31: L0 | H31: =Kold!H31 -> 0 | I31: =Kold!I31 -> 6 | J31: F5 | K31: L2 | L31: =Kold!L31 -> 3 | M31: 44.31005275 | N31: 321.4117707 | O31: 38.65006442 | P31: 42.63 | Q31: =IF($BL$34=1,"-",P30+Q30+R30+$U$6*$O$6*(C32+D32)) -> 310.8742857 | R31: 36.95 | S31: =IF(BL34=1,"-",$Q$6*(0.5*E31*INDEX(fladelast,BK31,1)+IF(E31>0,INDEX(linielast,BR31,1)*(E31-H31)/E31))) -> 17.43 | T31: =IF(BL34=1,"-",S30+T30+U30+$Q$6*C32) -> 199.6304762 | U31: =IF(BL34=1,"-",$Q$6*(0.5*I31*INDEX(fladelast,BY31,1)+IF(I31>0,INDEX(linielast,CF31,1)*(I31-L31)/I31))) -> 12.45 | BG31: 8.40001 | BH31: 0 | BI31: 6.00001 | BJ31: 3 | BK31: =Kold!BK31 -> 6 | BL31: 8.15 | BM31: 1 | BN31: 4 | BO31: 0.6 | BP31: 0.5 | BQ31: D | BR31: =Kold!BR31 -> 1 | BS31: 0 | BT31: 1 | BU31: 0 | BV31: 0 | BW31: 0 | BX31: 0 | BY31: =Kold!BY31 -> 6 | BZ31: 8.15 | CA31: 1 | CB31: 4 | CC31: 0.6 | CD31: 0.5 | CE31: D | CF31: =Kold!CF31 -> 3 | CG31: 8 | CH31: 1 | CI31: 10 | CJ31: 0.6 | CK31: 0.5 | CL31: D | CM31: =CM30+0.5*BG30*(BL30*BM30)+IF(E30>0,(BG30-BH30)*(BS30*BT30)/BG30)+0.5*BI30*(BZ30*CA30)+IF(I30>0,(BI30-BJ30)*(CG30*CH30)/BI30)+(C32+D32)*$U$6*$O$6 -> 263.3259781 | CN31: 0 | CO31: 0 | CP31: 0 | CQ31: 20.280029 | CR31: 0 | CS31: 0 | CT31: 0 | CU31: 0 | CV31: 0 | CW31: 0 | CX31: 0 | CY31: 16.90002417 | CZ31: 0 | DA31: 0 | DB31: 0 | DC31: 0 | DD31: 7.685722636 | DE31: 7.20001 | DF31: 0 | DG31: 0 | DH31: 43.20006 | DI31: 0 | DJ31: 0 | DK31: 0 | DL31: 6.148578109 | DM31: 3.600005 | DN31: 0 | DO31: 0 | DP31: 37.8000525 | DQ31: 0 | DR31: 0 | DS31: 0 | DT31: 58.08579264
B32: =Kold!B32 -> Kld. | C32: =Kold!C32 -> 10 | D32: =Kold!D32 -> 0 | N32: 404.3718879 | Q32: =IF($BL$34=1,"-",P31+Q31+R31) -> 390.4542857 | T32: =IF(BL34=1,"-",S31+T31+U31) -> 229.5104762 | CM32: =CM31+0.5*BG31*(BL31*BM31)+IF(E31>0,(BG31-BH31)*(BS31*BT31)/BG31)+0.5*BI31*(BZ31*CA31)+IF(I31>0,(BI31-BJ31)*(CG31*CH31)/BI31) -> 326.0060663 | CN32: 0 | CO32: 0 | CP32: 0 | CQ32: 0 | CR32: 0 | CS32: 0 | CT32: 0 | CU32: 0 | CV32: 0 | CW32: 0 | CX32: 0 | CY32: 0 | CZ32: 0 | DA32: 0 | DB32: 0 | DC32: 0 | DD32: 7.685722636 | DE32: 7.20001 | DF32: 0 | DG32: 20.280029 | DH32: 43.20006 | DI32: 0 | DJ32: 0 | DK32: 0 | DL32: 6.148578109 | DM32: 3.600005 | DN32: 0 | DO32: 16.90002417 | DP32: 37.8000525 | DQ32: 0 | DR32: 0 | DS32: 0 | DT32: 78.36582164
B33: Vejledning: | D33: Betonelementbyggeriers statik | L33: Polyteknisk Forlag 2010 eller www.bef.dk | M33: NB: Resultaterne skal altid kontrolleres af ansvarlig statiker
BG34: Fejltabel | BL34: =IF(MAX(BL35:BL46)=1,1,0) -> 0 | BM34: =BM35&BM36&BM37&BM38&BM39&BM40&BM41&BM42&BM43&BM44&BM45&BM46 -> 
BG35: Programmet modtager ikke negative inddata ! | BL35: =IF(MIN(O6,Q6,U6,BJ52:BN56,BJ61:BN62,C27:D32,E26:E31,H26:H31,I26:I31,L26:L31)<0,1,0) -> 0 | BM35: =IF(BL35=0,"",BG35) -> 
BG36: Linielast udenfor dækfelt ! | BL36: =IF(OR(H26>E26,H27>E27,H28>E28,H29>E29,H30>E30,H31>E31,L26>I26,L27>I27,L28>I28,L29>I29,L30>I30,L31>I31),1,0) -> 0 | BM36: =IF(BL36=0,"",BG36) -> 
BG37: Primær reduktionsfaktor skal være størst ! | BL37: =IF(OR(T11>S11,T12>S12,T13>S13,T14>S14,T15>S15,T20>S20,T21>S21),1,0) -> 0 | BM37: =IF(BL37=0,"",BG37) -> 
BG49: Fladelaste | BJ49: gk | BK49: gfri,k | BL49: qk | BM49: yq1/yq2 | BN49: yq2 | BO49: Kategori
BJ50: (kN/m2) | BK50: (kN/m2) | BL50: (kN/m2)
BG51: F0 | BJ51: 0 | BK51: 0 | BL51: 0
BG52: =Kold!M11 -> F1 | BH52: =Kold!N11 -> Tagflade, sne | BI52: =Kold!O11 -> 0 | BJ52: =Kold!P11 -> 3.1 | BK52: =Kold!Q11 -> 1 | BL52: =Kold!R11 -> 0.8 | BM52: =S11 -> 0.2 | BN52: 0 | BO52: =INDEX($BG$10:$BG$17,BI11,1) -> N
BG53: =Kold!M12 -> F2 | BH53: =Kold!N12 -> Boligarealer | BI53: =Kold!O12 -> 0 | BJ53: =Kold!P12 -> 3.65 | BK53: =Kold!Q12 -> 1.5 | BL53: =Kold!R12 -> 1.5 | BM53: 0.3 | BN53: 0.2 | BO53: =INDEX($BG$10:$BG$17,BI12,1) -> A
BG54: =Kold!M13 -> F3 | BH54: =Kold!N13 -> Kontorer | BI54: =Kold!O13 -> 0 | BJ54: =Kold!P13 -> 3.65 | BK54: =Kold!Q13 -> 2 | BL54: =Kold!R13 -> 2.5 | BM54: 0.4 | BN54: 0.2 | BO54: =INDEX($BG$10:$BG$17,BI13,1) -> B
BG55: =Kold!M14 -> F4 | BH55: =Kold!N14 -> Kontor med arkiv | BI55: =Kold!O14 -> 0 | BJ55: =Kold!P14 -> 3.65 | BK55: =Kold!Q14 -> 2 | BL55: =Kold!R14 -> 7.5 | BM55: 0.8 | BN55: 0.7 | BO55: =INDEX($BG$10:$BG$17,BI14,1) -> E
BG56: =Kold!M15 -> F5 | BH56: =Kold!N15 -> Butiksarealer | BI56: =Kold!O15 -> 0 | BJ56: =Kold!P15 -> 4.15 | BK56: =Kold!Q15 -> 4 | BL56: =Kold!R15 -> 4 | BM56: 0.6 | BN56: 0.5 | BO56: =INDEX($BG$10:$BG$17,BI15,1) -> D
BG58: Linielaste | BJ58: gk | BK58: gfri,k | BL58: qk | BM58: yq1/yq2 | BN58: yq2 | BO58: Kategori
BJ59: (kN/m) | BK59: (kN/m) | BL59: (kN/m)
BG60: L0 | BJ60: 0 | BK60: 0 | BL60: 0
BG61: =Kold!M20 -> L1 | BH61: =Kold!N20 -> Badeværelser | BI61: =Kold!O20 -> 0 | BJ61: =Kold!P20 -> 8 | BK61: =Kold!Q20 -> 4 | BL61: =Kold!R20 -> 6 | BM61: =S20 -> 0.3 | BN61: =T20 -> 0.2 | BO61: =INDEX($BG$10:$BG$17,BI16,1) -> A
BG62: =Kold!M21 -> L2 | BH62: =Kold!N21 -> Komprimator | BI62: =Kold!O21 -> 0 | BJ62: =Kold!P21 -> 0 | BK62: =Kold!Q21 -> 8 | BL62: =Kold!R21 -> 10 | BM62: =S21 -> 0.6 | BN62: =T21 -> 0.5 | BO62: =INDEX($BG$10:$BG$17,BI17,1) -> D

Sheet Ark1
B1: =-Kold!BG26 -> -8.40001 | C1: 0 | D1: 0 | E1: =Kold!BI26 -> 6.00001 | F1: =-Kold!BG27 -> -8.40001 | G1: 0 | H1: =Kold!BI27 -> 6.00001 | I1: =-Kold!BG28 -> -8.40001 | J1: 0 | K1: =Kold!BI28 -> 6.00001 | L1: =-Kold!BG29 -> -8.40001 | M1: 0 | N1: =Kold!BI29 -> 6.00001 | O1: =-Kold!BG30 -> -8.40001 | P1: 0 | Q1: =Kold!BI30 -> 6.00001 | R1: =-Kold!BG31 -> -8.40001 | S1: 0 | T1: =Kold!BI31 -> 6.00001 | U1: -1 | V1: 0 | W1: 1 | X1: =-Kold!H26 -> 0 | Y1: =X1 -> 0 | Z1: =Kold!L26 -> 0 | AA1: =Z1 -> 0 | AB1: =-Kold!H27 -> -2 | AC1: =AB1 -> -2 | AD1: =Kold!L27 -> 0 | AE1: =AD1 -> 0 | AF1: =-Kold!H28 -> -2 | AG1: =AF1 -> -2 | AH1: =Kold!L28 -> 0 | AI1: =AH1 -> 0 | AJ1: =-Kold!H29 -> 0 | AK1: =AJ1 -> 0 | AL1: =Kold!L29 -> 0 | AM1: =AL1 -> 0 | AN1: =-Kold!H30 -> 0 | AO1: =AN1 -> 0 | AP1: =Kold!L30 -> 0 | AQ1: =AP1 -> 0 | AR1: =-Kold!H31 -> 0 | AS1: =AR1 -> 0 | AT1: =Kold!L31 -> 3 | AU1: =AT1 -> 3
A2: Geometri | C2: 0 | D2: =IF(AND(Kold!$E$26=0,Kold!$I$26=0),G2,G2+3) -> 18 | G2: =IF(AND(Kold!$E$27=0,Kold!$I$27=0),J2,J2+3) -> 15 | J2: =IF(AND(Kold!$E$28=0,Kold!$I$28=0),M2,M2+3) -> 12 | M2: =IF(AND(Kold!$E$29=0,Kold!$I$29=0),P2,P2+3) -> 9 | P2: =IF(AND(Kold!$E$30=0,Kold!$I$30=0),S2,S2+3) -> 6 | S2: =IF(AND(Kold!$E$31=0,Kold!$I$31=0),V2,V2+3) -> 3 | V2: 0
A3: =Kold!B26&"-v "&Kold!$F$26 -> Tag-v F1 | B3: =D2+IF(Kold!E26=0,100,0) -> 18 | C3: =B3 -> 18
A4: =Kold!$J$26&" "&Kold!B26&"-h" -> F1 Tag-h | D4: =D2+IF(Kold!I26=0,100,0) -> 18 | E4: =D4 -> 18
A5: =Kold!B27&"-v "&Kold!$F$27 -> 4. sal-v F2 | F5: =G2+IF(Kold!E27=0,100,0) -> 15 | G5: =F5 -> 15
A6: =Kold!$J$27&" "&Kold!B27&"-h" -> F2 4. sal-h | G6: =G2+IF(Kold!I27=0,100,0) -> 15 | H6: =G6 -> 15
A7: =Kold!B28&"-v "&Kold!$F$28 -> 3. sal-v F2 | I7: =J2+IF(Kold!E28=0,100,0) -> 12 | J7: =I7 -> 12
A8: =Kold!$J$28&" "&Kold!B28&"-h" -> F2 3. sal-h | J8: =J2+IF(Kold!I28=0,100,0) -> 12 | K8: =J8 -> 12
A9: =Kold!B29&"-v "&Kold!$F$29 -> 2. sal-v F3 | L9: =M2+IF(Kold!E29=0,100,0) -> 9 | M9: =L9 -> 9
A10: =Kold!$J$29&" "&Kold!B29&"-h" -> F3 2. sal-h | M10: =M2+IF(Kold!I29=0,100,0) -> 9 | N10: =M10 -> 9
A11: =Kold!B30&"-v "&Kold!$F$30 -> 1. sal-v F4 | O11: =P2+IF(Kold!E30=0,100,0) -> 6 | P11: =O11 -> 6
A12: =Kold!$J$30&" "&Kold!B30&"-h" -> F4 1. sal-h | P12: =P2+IF(Kold!I30=0,100,0) -> 6 | Q12: =P12 -> 6
A13: =Kold!B31&"-v "&Kold!$F$31 -> Stue-v F5 | R13: =S2+IF(Kold!E31=0,100,0) -> 3 | S13: =R13 -> 3
A14: =Kold!$J$31&" "&Kold!B31&"-h" -> F5 Stue-h | S14: =S2+IF(Kold!I31=0,100,0) -> 3 | T14: =S14 -> 3
A15: =Kold!B32 -> Kld. | U15: 0 | V15: 0
V16: 0 | W16: 0
A17: =Kold!G26 -> L0 | X17: =B3+IF(Kold!BR26=1,100,0) -> 118 | Y17: =X17+1 -> 119
A18: =Kold!K26 -> L0 | Z18: =D4+IF(Kold!CF26=1,100,0) -> 118 | AA18: =Z18+1 -> 119
A19: =Kold!G27 -> L1 | AB19: =F5+IF(Kold!BR27=1,100,0) -> 15 | AC19: =AB19+1 -> 16
A20: =Kold!K27 -> L0 | AD20: =G6+IF(Kold!CF27=1,100,0) -> 115 | AE20: =AD20+1 -> 116
A21: =Kold!G28 -> L1 | AF21: =I7+IF(Kold!BR28=1,100,0) -> 12 | AG21: =AF21+1 -> 13
A22: =Kold!K28 -> L0 | AH22: =J8+IF(Kold!CF28=1,100,0) -> 112 | AI22: =AH22+1 -> 113
A23: =Kold!G29 -> L0 | AJ23: =L9+IF(Kold!BR29=1,100,0) -> 109 | AK23: =AJ23+1 -> 110
A24: =Kold!K29 -> L0 | AL24: =M10+IF(Kold!CF29=1,100,0) -> 109 | AM24: =AL24+1 -> 110
A25: =Kold!G30 -> L0 | AN25: =O11+IF(Kold!BR30=1,100,0) -> 106 | AO25: =AN25+1 -> 107
A26: =Kold!K30 -> L0 | AP26: =P12+IF(Kold!CF30=1,100,0) -> 106 | AQ26: =AP26+1 -> 107
A27: =Kold!G31 -> L0 | AR27: =R13+IF(Kold!BR31=1,100,0) -> 103 | AS27: =AR27+1 -> 104
A28: =Kold!K31 -> L2 | AT28: =S14+IF(Kold!CF31=1,100,0) -> 3 | AU28: =AT28+1 -> 4
